bitfinex-derivatives/quotes_BTCF0:USTF0_20250711
["timestamp","ask_amount","ask_price","bid_price","bid_amount"]
[1752227131800,0.60916822,118680.0,118670.0,0.013]
[1752227132000,1.02831855,118680.0,118670.0,0.013]
[1752227133207,0.60916822,118680.0,118670.0,0.1814767]
[1752227134204,1.23592822,118680.0,118670.0,0.1814767]
[1752227134809,0.60916822,118680.0,118670.0,0.1814767]
[1752227135004,0.60916822,118680.0,118670.0,0.60062703]
[1752227135005,0.87516822,118680.0,118670.0,0.60062703]
[1752227135202,1.23596822,118680.0,118670.0,0.63082703]
[1752227135408,1.23596822,118680.0,118670.0,0.2116767]
[1752227135607,1.23596822,118680.0,118670.0,0.1814767]
[1752227135809,1.23588822,118680.0,118670.0,0.1814767]
[1752227136207,0.60916822,118680.0,118670.0,0.1814767]
[1752227136411,1.23588822,118680.0,118670.0,0.1814767]
[1752227138918,1.23688822,118680.0,118670.0,0.1814767]
[1752227140414,1.29729585,118680.0,118670.0,0.1684767]
[1752227140822,1.65541051,118680.0,118670.0,0.1684767]
[1752227141123,1.29729585,118680.0,118670.0,0.1684767]
[1752227142921,1.65541051,118680.0,118670.0,0.1684767]
[1752227143720,1.29729585,118680.0,118670.0,0.1684767]
[1752227143921,1.59500288,118680.0,118670.0,0.1684767]
[1752227144411,1.67074228,118680.0,118670.0,0.1684767]
[1752227144615,1.23640822,118680.0,118670.0,0.1684767]
[1752227145018,1.59452288,118680.0,118670.0,0.1684767]
[1752227147723,1.23640822,118680.0,118670.0,0.1684767]
[1752227147918,1.59452288,118680.0,118670.0,0.1684767]
[1752227148319,1.67026228,118680.0,118670.0,0.1684767]
[1752227148513,1.67030228,118680.0,118670.0,0.1684767]
[1752227149324,0.1684768,118670.0,118660.0,0.3552469]
[1752227149518,0.58990965,118670.0,118660.0,0.3131244]
[1752227149819,0.22910965,118670.0,118660.0,0.3131244]
[1752227150023,0.58990965,118670.0,118660.0,0.3131244]
[1752227150422,0.5292768,118670.0,118660.0,0.3131244]
[1752227150629,0.58991529,118670.0,118660.0,0.3131244]
[1752227151120,1.21571529,118670.0,118660.0,0.3131244]
[1752227151318,1.1550768,118670.0,118660.0,0.3131244]
[1752227152227,1.21572221,118670.0,118660.0,0.3131244]
[1752227152415,1.1550768,118670.0,118660.0,0.3131244]
[1752227153016,1.1550768,118670.0,118660.0,0.67123906]
[1752227153017,1.2157308,118670.0,118660.0,0.67123906]
[1752227153524,1.1549568,118670.0,118660.0,0.67123906]
[1752227153720,0.5292768,118670.0,118660.0,0.3131244]
[1752227153921,1.04407098,118680.0,118660.0,0.3131244]
[1752227153922,0.30337022,118680.0,118670.0,0.1684767]
[1752227154121,0.0767794,118680.0,118670.0,0.95119136]
[1752227154318,0.00104,118680.0,118670.0,0.95119136]
[1752227154515,0.1695025,118680.0,118670.0,0.95119136]
[1752227155026,0.06168715,118680.0,118670.0,0.95119136]
[1752227155327,0.06167146,118680.0,118670.0,0.95119136]
[1752227155527,0.00104,118680.0,118670.0,1.11971935]
[1752227155824,0.00104,118680.0,118670.0,2.20223136]
[1752227156523,0.06259505,118690.0,118680.0,0.1684624]
[1752227156719,0.06063505,118700.0,118690.0,0.1684482]
[1752227156926,0.06063505,118700.0,118690.0,2.13824286]
[1752227157121,0.07644393,118710.0,118700.0,0.1684341]
[1752227157322,0.07644393,118710.0,118700.0,0.88734876]
[1752227158030,0.01584888,118710.0,118700.0,0.88734876]
[1752227159125,0.01584888,118710.0,118700.0,0.89448333]
[1752227159427,0.01584888,118710.0,118700.0,0.96287743]
[1752227159823,0.01584888,118710.0,118700.0,0.99287743]
[1752227160521,0.01584888,118710.0,118700.0,1.02607743]
[1752227160722,0.06059505,118720.0,118710.0,0.1684199]
[1752227160926,0.06263505,118730.0,118720.0,0.1684057]
[1752227161129,0.06263505,118730.0,118720.0,0.60978284]
[1752227161323,0.06263505,118730.0,118720.0,0.9678975]
[1752227161929,0.06263505,118730.0,118720.0,0.60978284]
[1752227162129,0.06263505,118730.0,118720.0,0.9678975]
[1752227163827,0.00204,118730.0,118720.0,0.9678975]
[1752227164932,0.52854616,118730.0,118720.0,0.18578284]
[1752227165134,0.2034315,118730.0,118720.0,0.18578284]
[1752227165334,0.5944315,118730.0,118720.0,0.18578284]
[1752227166729,0.95254616,118730.0,118720.0,0.18578284]
[1752227166929,0.5944315,118730.0,118720.0,0.18578284]
[1752227167235,0.5944315,118730.0,118720.0,0.1684057]
[1752227168734,0.42604,118730.0,118720.0,0.1684057]
[1752227168936,0.68964,118730.0,118720.0,0.1684057]
[1752227169239,0.68964,118730.0,118720.0,0.65075032]
[1752227169929,0.06524,118730.0,118720.0,0.65075032]
[1752227170237,0.06524,118730.0,118720.0,0.5922057]
[1752227170438,0.62632,118730.0,118720.0,1.01155032]
[1752227170633,0.00204,118730.0,118720.0,1.01155032]
[1752227171741,0.00204,118730.0,118720.0,1.02455032]
[1752227175040,0.00204,118730.0,118720.0,1.02555032]
[1752227176638,0.00204,118730.0,118720.0,2.27315032]
[1752227176939,0.00204,118730.0,118720.0,1.8538057]
[1752227177139,0.00204,118730.0,118720.0,2.27315032]
[1752227177341,0.00204,118730.0,118720.0,2.26015032]
[1752227179341,0.08317047,118740.0,118730.0,0.1683916]
[1752227179543,0.02017047,118740.0,118730.0,1.00913622]
[1752227180143,0.00423949,118740.0,118730.0,1.00913622]
[1752227181747,9e-08,118740.0,118730.0,1.00913622]
[1752227182337,0.00204,118770.0,118760.0,0.168349]
[1752227182546,0.1703749,118770.0,118760.0,0.168349]
[1752227182848,0.06524,118770.0,118760.0,0.168349]
[1752227183045,0.06524,118770.0,118760.0,0.529149]
[1752227183548,0.06524,118770.0,118760.0,0.94849362]
[1752227183750,0.06524,118770.0,118760.0,0.95552872]
[1752227184048,0.06524,118770.0,118760.0,0.94849362]
[1752227186843,0.06524,118770.0,118760.0,0.88661378]
[1752227187045,0.06524,118770.0,118760.0,0.95221378]
[1752227187743,0.06524,118770.0,118760.0,0.98643753]
[1752227189341,0.06524,118770.0,118760.0,1.01158661]
[1752227191349,0.06524,118770.0,118760.0,0.98643753]
[1752227192647,0.5943748,118770.0,118760.0,0.59323753]
[1752227192841,0.2335748,118770.0,118760.0,0.59323753]
[1752227193153,0.06524,118770.0,118760.0,0.59323753]
[1752227193454,0.06524,118770.0,118760.0,0.95403753]
[1752227194947,0.00204,118770.0,118760.0,1.01813753]
[1752227195657,0.03264,118770.0,118760.0,1.01813753]
[1752227196154,0.06524,118770.0,118760.0,0.95403753]
[1752227196856,0.00204,118770.0,118760.0,1.37460231]
[1752227199654,0.00204,118770.0,118760.0,1.3998]
[1752227201151,0.00204,118770.0,118760.0,1.58136166]
[1752227201357,0.4870668,118800.0,118790.0,0.1683064]
[1752227201358,4e-05,118800.0,118790.0,0.1683064]
[1752227201557,4e-05,118800.0,118790.0,0.94987118]
[1752227202652,4e-05,118800.0,118790.0,0.91817118]
[1752227202653,0.06554,118800.0,118790.0,0.91817118]
[1752227202862,0.06554,118800.0,118790.0,0.88657118]
[1752227205554,8e-05,118800.0,118790.0,0.88657118]
[1752227205757,0.0677,118810.0,118790.0,1.13872956]
[1752227206059,0.30198577,118840.0,118830.0,0.1682499]
[1752227206261,0.88073479,118840.0,118830.0,0.15456577]
[1752227206559,1.24153479,118840.0,118830.0,0.15456577]
[1752227206755,1.31704577,118840.0,118830.0,0.15456577]
[1752227206953,1.67451055,118840.0,118830.0,0.15456577]
[1752227207359,1.63179957,118840.0,118830.0,0.15456577]
[1752227208164,1.27433479,118840.0,118830.0,0.15456577]
[1752227208360,1.63179957,118840.0,118830.0,0.15456577]
[1752227208664,1.63183957,118840.0,118830.0,0.15456577]
[1752227210271,1.27437479,118840.0,118830.0,0.15456577]
[1752227213068,0.1682499,118830.0,118820.0,0.36208609]
[1752227213270,0.2307499,118830.0,118820.0,0.36208609]
[1752227213568,0.2307499,118830.0,118800.0,0.04375483]
[1752227213569,0.94907678,118830.0,118800.0,0.04375483]
[1752227213770,1.35583977,118840.0,118800.0,0.16996373]
[1752227213771,0.5290782,118810.0,118800.0,0.16996373]
[1752227213971,1.52288017,118810.0,118800.0,0.00168343]
[1752227214169,1.75282417,118810.0,118800.0,0.00168343]
[1752227214376,0.1683065,118790.0,118780.0,0.2945461]
[1752227214569,1.1497065,118790.0,118780.0,0.2945461]
[1752227214766,1.60014185,118790.0,118780.0,0.16831]
[1752227214967,0.1683207,118780.0,118770.0,0.2524887]
[1752227215168,0.5606207,118780.0,118770.0,0.2524887]
[1752227216274,0.5606207,118780.0,118770.0,0.2104053]
[1752227216974,0.1683349,118770.0,118760.0,0.281091]
[1752227217171,1.1816149,118770.0,118760.0,0.281091]
[1752227217675,1.2134149,118770.0,118760.0,0.281091]
[1752227218073,1.2134149,118770.0,118760.0,0.2390057]
[1752227218274,1.63235025,118770.0,118760.0,0.1969217]
[1752227218472,1.2134149,118770.0,118760.0,0.028584]
[1752227218677,1.2134149,118770.0,118760.0,0.196933]
[1752227218872,0.5929349,118770.0,118760.0,0.196933]
[1752227219079,0.8524949,118770.0,118760.0,0.196933]
[1752227219276,0.62036,118770.0,118760.0,0.6419019]
[1752227219480,0.7886949,118770.0,118760.0,0.6419019]
[1752227222477,0.8539949,118770.0,118760.0,0.6419019]
[1752227222975,0.8539949,118770.0,118760.0,0.389384]
[1752227223184,1.27269025,118770.0,118760.0,0.389384]
[1752227223574,0.29400761,118770.0,118760.0,0.389384]
[1752227223780,0.8537149,118770.0,118760.0,0.97666845]
[1752227223973,0.8537149,118770.0,118760.0,1.00746845]
[1752227224175,0.8537149,118770.0,118760.0,1.03746845]
[1752227225481,0.8537149,118770.0,118760.0,0.5885331]
[1752227225679,0.8537149,118770.0,118760.0,0.5577331]
[1752227225879,0.2336349,118770.0,118760.0,0.5577331]
[1752227226081,0.8535949,118770.0,118760.0,0.5577331]
[1752227226586,0.2336349,118770.0,118760.0,0.5577331]
[1752227226782,0.8535549,118770.0,118760.0,0.5577331]
[1752227226988,0.2336349,118770.0,118760.0,0.5577331]
[1752227227185,0.8535149,118770.0,118760.0,0.5577331]
[1752227228790,0.8535149,118770.0,118760.0,0.389384]
[1752227229584,0.8535149,118770.0,118760.0,0.557733]
[1752227231187,0.8532349,118770.0,118760.0,0.622233]
[1752227232090,0.8532349,118770.0,118760.0,0.589933]
[1752227232294,0.8532349,118770.0,118760.0,0.557733]
[1752227233691,0.8532349,118770.0,118760.0,0.389384]
[1752227234392,0.8532349,118770.0,118760.0,0.5577329]
[1752227234796,0.8530749,118770.0,118760.0,0.5577329]
[1752227234986,0.8530749,118770.0,118760.0,0.94719125]
[1752227235392,0.8530749,118770.0,118760.0,0.5896329]
[1752227235590,0.7876549,118770.0,118760.0,0.97929125]
[1752227237897,0.1683349,118770.0,118760.0,0.97929125]
[1752227238097,0.7874949,118770.0,118760.0,0.97929125]
[1752227238800,0.7874949,118770.0,118760.0,0.6217329]
[1752227239500,0.7874949,118770.0,118760.0,1.04072843]
[1752227239699,0.22870761,118770.0,118760.0,1.04072843]
[1752227239895,0.22870751,118770.0,118760.0,1.04072843]
[1752227240089,0.22870751,118770.0,118760.0,0.6217329]
[1752227240090,0.7873348,118770.0,118760.0,0.6217329]
[1752227240295,0.7873348,118770.0,118760.0,1.04072843]
[1752227241996,0.7873348,118770.0,118760.0,0.6217329]
[1752227242196,1.26670304,118770.0,118760.0,0.389384]
[1752227242392,1.27143033,118770.0,118760.0,0.389384]
[1752227242695,1.33180304,118770.0,118760.0,0.389384]
[1752227244701,1.27143033,118770.0,118760.0,0.389384]
[1752227244898,1.34694131,118770.0,118760.0,0.389384]
[1752227245098,1.27143033,118770.0,118760.0,0.389384]
[1752227245298,1.3771457,118770.0,118760.0,0.389384]
[1752227246202,1.27143033,118770.0,118760.0,0.389384]
[1752227246400,0.168349,118760.0,118750.0,0.5291626]
[1752227246592,0.33759502,118760.0,118750.0,0.5291626]
[1752227247199,0.33759502,118760.0,118750.0,0.3608]
[1752227247504,0.75659055,118760.0,118750.0,0.3608]
[1752227248298,0.1683631,118750.0,118740.0,0.6445544]
[1752227248502,0.89392337,118750.0,118740.0,0.6445544]
[1752227248798,0.89392337,118750.0,118740.0,0.392]
[1752227248997,1.23725863,118750.0,118740.0,0.3608]
[1752227249201,0.1683774,118740.0,118730.0,0.3608]
[1752227249402,0.75621895,118740.0,118730.0,0.5291915]
[1752227249604,0.95554342,118740.0,118730.0,0.5291915]
[1752227249805,0.7866974,118740.0,118730.0,0.5944915]
[1752227250304,0.89254342,118740.0,118730.0,0.5944915]
[1752227250600,0.1683774,118740.0,118730.0,0.5944915]
[1752227251000,0.1683774,118740.0,118730.0,1.01348703]
[1752227251405,0.26891245,118750.0,118740.0,0.1683774]
[1752227251707,0.37475847,118750.0,118740.0,1.01367293]
[1752227252005,0.99299847,118750.0,118740.0,1.01367293]
[1752227252208,0.96270797,118750.0,118740.0,1.01367293]
[1752227252396,0.22681865,118750.0,118740.0,1.01367293]
[1752227252596,0.92061316,118750.0,118740.0,1.01367293]
[1752227253306,0.92061316,118750.0,118740.0,0.5946774]
[1752227253505,0.92061316,118750.0,118740.0,1.01367293]
[1752227253908,0.92061316,118750.0,118740.0,0.5946774]
[1752227254602,0.90548676,118750.0,118740.0,0.5946774]
[1752227255205,0.01635095,118750.0,118740.0,1.01367293]
[1752227256313,0.18471415,118750.0,118740.0,1.01367293]
[1752227256811,0.01635095,118750.0,118740.0,1.01367293]
[1752227257810,0.01635095,118750.0,118740.0,1.03803723]
[1752227258706,0.01635095,118750.0,118740.0,1.20646923]
[1752227259308,0.01635095,118750.0,118740.0,1.18210493]
[1752227259709,0.01635095,118750.0,118740.0,1.43210493]
[1752227260311,0.01635095,118750.0,118740.0,1.18210493]
[1752227261311,0.01635095,118750.0,118740.0,1.17710493]
[1752227264221,0.01635095,118750.0,118740.0,1.00867293]
[1752227264523,0.01635095,118750.0,118740.0,0.5896774]
[1752227264914,0.18471405,118750.0,118740.0,0.5896774]
[1752227265519,0.18471405,118750.0,118740.0,0.5567774]
[1752227265828,0.24855405,118750.0,118740.0,0.5567774]
[1752227268626,0.01639095,118750.0,118740.0,0.97577293]
[1752227268822,0.01639095,118750.0,118740.0,1.00797293]
[1752227269426,8e-05,118750.0,118740.0,1.00797293]
[1752227273837,8e-05,118750.0,118740.0,2.24121293]
[1752227274642,8e-05,118750.0,118740.0,1.8222174]
[1752227274837,8e-05,118750.0,118740.0,2.24121293]
[1752227276236,4e-05,118750.0,118740.0,2.24121293]
[1752227276441,0.01889012,118770.0,118760.0,0.168349]
[1752227276635,0.26207971,118800.0,118790.0,0.1683064]
[1752227276836,0.26207971,118800.0,118790.0,1.30890193]
[1752227277038,0.08059918,118800.0,118790.0,1.30890193]
[1752227277545,0.08059918,118800.0,118790.0,0.9225064]
[1752227277746,0.08059918,118800.0,118790.0,1.34150193]
[1752227277946,0.08059918,118800.0,118790.0,1.40946019]
[1752227281047,0.69655918,118800.0,118790.0,1.40946019]
[1752227281848,0.01569918,118800.0,118790.0,1.40946019]
[1752227282046,0.01569918,118800.0,118790.0,1.44046019]
[1752227282853,0.01573918,118800.0,118790.0,1.44046019]
[1752227283845,4e-05,118800.0,118790.0,1.44046019]
[1752227284553,0.1683322,118800.0,118790.0,0.95786466]
[1752227284847,0.2295322,118800.0,118790.0,0.95786466]
[1752227285043,0.8450922,118800.0,118790.0,0.95786466]
[1752227286248,0.8450922,118800.0,118790.0,0.8899064]
[1752227289655,0.2295322,118800.0,118790.0,0.8899064]
[1752227289854,0.8447322,118800.0,118790.0,1.30890193]
[1752227290054,0.2295322,118800.0,118790.0,0.94810193]
[1752227290251,0.8446922,118800.0,118790.0,0.5291064]
[1752227291155,0.8446922,118800.0,118790.0,0.8899064]
[1752227292957,0.2295322,118800.0,118790.0,0.8899064]
[1752227293159,0.8444122,118800.0,118790.0,0.8899064]
[1752227293363,0.2295322,118800.0,118790.0,0.8899064]
[1752227293757,0.8443722,118800.0,118790.0,0.8899064]
[1752227294255,0.8443322,118800.0,118790.0,0.8899064]
[1752227294456,0.2295322,118800.0,118790.0,0.8899064]
[1752227294755,0.8442922,118800.0,118790.0,0.8899064]
[1752227295460,0.2295322,118800.0,118790.0,0.8899064]
[1752227295660,0.8442922,118800.0,118790.0,0.8899064]
[1752227298658,0.8442922,118800.0,118790.0,1.30890193]
[1752227298858,0.8442922,118800.0,118790.0,0.8899064]
[1752227300259,0.2295322,118800.0,118790.0,0.8899064]
[1752227300454,0.8440122,118800.0,118790.0,0.8899064]
[1752227301856,4e-05,118800.0,118790.0,1.30890193]
[1752227302060,4e-05,118800.0,118790.0,1.37230193]
[1752227302061,0.7826923,118800.0,118790.0,1.37230193]
[1752227302364,0.6144,118800.0,118790.0,1.37230193]
[1752227302564,0.7826922,118800.0,118790.0,1.37230193]
[1752227302757,0.6144,118800.0,118790.0,1.38430193]
[1752227302958,0.7826922,118800.0,118790.0,1.32263354]
[1752227303455,0.7826922,118800.0,118790.0,1.31063354]
[1752227305358,4e-05,118800.0,118790.0,1.31063354]
[1752227305561,0.61408,118800.0,118790.0,1.31063354]
[1752227305762,0.7823722,118800.0,118790.0,1.31063354]
[1752227305959,0.61408,118800.0,118790.0,1.31063354]
[1752227306159,0.61396,118800.0,118790.0,1.31063354]
[1752227307267,0.61396,118800.0,118790.0,1.30763354]
[1752227308265,0.61396,118800.0,118790.0,0.9503064]
[1752227308266,0.7821723,118800.0,118790.0,0.9503064]
[1752227309162,0.8146723,118800.0,118790.0,0.9503064]
[1752227309365,0.8146723,118800.0,118790.0,0.9177064]
[1752227309563,0.8478723,118800.0,118790.0,0.9177064]
[1752227311368,0.8478723,118800.0,118790.0,1.27503354]
[1752227311563,0.8478723,118800.0,118790.0,0.1961064]
[1752227311767,0.8478723,118800.0,118790.0,0.9177064]
[1752227313268,0.8478723,118800.0,118790.0,1.27503354]
[1752227313463,0.8478723,118800.0,118790.0,0.8869064]
[1752227314365,0.67914,118800.0,118790.0,1.24423354]
[1752227314561,0.67914,118800.0,118790.0,1.30733354]
[1752227314562,0.8474322,118800.0,118790.0,1.30733354]
[1752227315068,0.7816522,118800.0,118790.0,1.30733354]
[1752227317466,0.1683322,118800.0,118790.0,1.30733354]
[1752227317666,0.61312,118800.0,118790.0,1.30733354]
[1752227318571,0.7814122,118800.0,118790.0,1.30733354]
[1752227318866,0.7813322,118800.0,118790.0,1.30733354]
[1752227319269,0.61304,118800.0,118790.0,1.30733354]
[1752227320169,4e-05,118800.0,118790.0,1.30833354]
[1752227320370,0.61296,118800.0,118790.0,1.30833354]
[1752227321071,0.61296,118800.0,118790.0,1.25333354]
[1752227322776,0.7812522,118800.0,118790.0,1.25333354]
[1752227322966,0.1683322,118800.0,118790.0,1.25333354]
[1752227323162,0.7810922,118800.0,118790.0,1.22103354]
[1752227323571,0.6128,118800.0,118790.0,1.22103354]
[1752227323773,0.61272,118800.0,118790.0,1.25373354]
[1752227323969,4e-05,118800.0,118790.0,2.47901354]
[1752227326064,4e-05,118800.0,118790.0,2.83634068]
[1752227326467,0.002,118810.0,118800.0,0.1683014]
[1752227326773,0.002,118810.0,118800.0,1.01102378]
[1752227329779,0.002,118810.0,118800.0,1.43054616]
[1752227330367,0.002,118810.0,118800.0,1.42954616]
[1752227331474,4e-05,118840.0,118830.0,0.1682497]
[1752227331669,0.61208,118840.0,118830.0,0.94757208]
[1752227331870,0.88895011,118840.0,118830.0,0.94757208]
[1752227332070,0.92135011,118840.0,118830.0,0.94757208]
[1752227332471,0.14107451,118840.0,118830.0,0.94757208]
[1752227332671,0.67744,118840.0,118830.0,0.94757208]
[1752227332874,4e-05,118840.0,118830.0,0.97987208]
[1752227333077,0.612,118840.0,118830.0,0.97987208]
[1752227333280,0.612,118840.0,118830.0,1.01267208]
[1752227333472,0.612,118840.0,118830.0,1.02056425]
[1752227334076,0.612,118840.0,118830.0,1.01267208]
[1752227334580,0.6449,118840.0,118830.0,1.01267208]
[1752227334977,0.03294,118840.0,118830.0,1.02058237]
[1752227335175,0.64482,118840.0,118830.0,1.02058237]
[1752227336975,0.64482,118840.0,118830.0,1.01267208]
[1752227337181,0.6445,118840.0,118830.0,1.01267208]
[1752227337770,4e-05,118840.0,118830.0,1.01267208]
[1752227338878,4e-05,118840.0,118830.0,1.02055528]
[1752227339181,0.1682755,118840.0,118830.0,1.01267208]
[1752227339383,4e-05,118840.0,118830.0,1.01267208]
[1752227340174,4e-05,118840.0,118830.0,2.23531208]
[1752227341581,4e-05,118840.0,118830.0,2.24315659]
[1752227348880,4e-05,118840.0,118830.0,2.1816056]
[1752227351187,4e-05,118840.0,118830.0,1.82463421]
[1752227351495,4e-05,118840.0,118830.0,2.1816056]
[1752227352389,4e-05,118840.0,118830.0,2.53857699]
[1752227352788,4e-05,118840.0,118830.0,2.55582691]
[1752227353693,4e-05,118840.0,118830.0,2.56782691]
[1752227354291,4e-05,118840.0,118830.0,2.21085552]
[1752227355087,0.1682756,118840.0,118830.0,2.20861552]
[1752227355288,4e-05,118840.0,118830.0,2.20861552]
[1752227355889,4e-05,118840.0,118830.0,2.56558691]
[1752227356296,4e-05,118840.0,118830.0,2.20861552]
[1752227359095,4e-05,118840.0,118830.0,2.56558691]
[1752227359295,4e-05,118840.0,118830.0,2.59096646]
[1752227360593,4e-05,118840.0,118830.0,2.60411998]
[1752227361196,4e-05,118840.0,118830.0,2.60511998]
[1752227364099,4e-05,118840.0,118830.0,2.59211998]
[1752227364299,4e-05,118840.0,118830.0,2.60411998]
[1752227366100,4e-05,118840.0,118830.0,2.59096646]
[1752227367802,4e-05,118840.0,118830.0,2.62641876]
[1752227371108,4e-05,118840.0,118830.0,2.60411982]
[1752227371810,4e-05,118840.0,118830.0,2.23399507]
[1752227372800,0.06114,118840.0,118830.0,2.23399507]
[1752227374506,0.06114,118840.0,118830.0,2.16889507]
[1752227375105,0.2293756,118840.0,118830.0,2.16577507]
[1752227375506,0.2293756,118840.0,118830.0,2.14039552]
[1752227376713,0.2293756,118840.0,118830.0,0.92311552]
[1752227378717,0.24555889,118840.0,118830.0,0.92311552]
[1752227378913,0.24555889,118840.0,118830.0,0.56614413]
[1752227379115,0.24555889,118840.0,118830.0,0.5410497]
[1752227379317,0.24555889,118840.0,118830.0,0.89802109]
[1752227379709,0.24555889,118840.0,118830.0,0.5410497]
[1752227380014,0.24555889,118840.0,118830.0,0.89802109]
[1752227380915,0.24555889,118840.0,118830.0,0.89702109]
[1752227381117,0.24555889,118840.0,118830.0,0.5400497]
[1752227381710,0.24555889,118840.0,118830.0,0.89702109]
[1752227382220,0.30607308,118840.0,118830.0,0.89702109]
[1752227382612,0.30607308,118840.0,118830.0,0.5400497]
[1752227383512,0.30607308,118840.0,118830.0,0.89702109]
[1752227384518,0.24555889,118840.0,118830.0,0.89702109]
[1752227384820,0.30607308,118840.0,118830.0,0.89702109]
[1752227385318,0.91403308,118840.0,118830.0,0.89702109]
[1752227385718,0.30607308,118840.0,118830.0,0.89702109]
[1752227385919,0.91403308,118840.0,118830.0,0.89702109]
[1752227386519,0.30607308,118840.0,118830.0,0.89702109]
[1752227386722,0.91395308,118840.0,118830.0,0.5400497]
[1752227386927,0.91395308,118840.0,118830.0,0.89702109]
[1752227387117,0.91395308,118840.0,118830.0,0.5400497]
[1752227387318,0.91395308,118840.0,118830.0,0.89702109]
[1752227387619,0.91395308,118840.0,118830.0,0.5400497]
[1752227387815,0.91395308,118840.0,118830.0,0.89702109]
[1752227388524,0.85343889,118840.0,118830.0,0.89702109]
[1752227390817,0.85343889,118840.0,118830.0,0.5400497]
[1752227391519,0.91389324,118840.0,118830.0,0.5400497]
[1752227393824,1.27086463,118840.0,118830.0,0.5400497]
[1752227394116,1.43916863,118840.0,118830.0,0.3728]
[1752227394317,1.37871428,118840.0,118830.0,0.3728]
[1752227394520,1.45434879,118840.0,118830.0,0.3728]
[1752227394729,1.51480889,118840.0,118830.0,0.3728]
[1752227394922,1.43917438,118840.0,118830.0,0.3728]
[1752227395922,1.37871428,118840.0,118830.0,0.012]
[1752227396528,1.45434879,118840.0,118830.0,0.012]
[1752227396927,1.45434879,118840.0,118830.0,0.1802498]
[1752227397120,1.45434879,118840.0,118830.0,0.5410498]
[1752227397323,1.37871428,118840.0,118830.0,0.5410498]
[1752227397827,1.21041028,118840.0,118830.0,0.5410498]
[1752227398026,0.1682497,118830.0,118820.0,0.6552484]
[1752227398222,0.65006844,118830.0,118820.0,0.6131827]
[1752227398529,0.58962109,118830.0,118820.0,0.3608]
[1752227398930,0.58962109,118830.0,118820.0,0.5290639]
[1752227399518,0.58962109,118830.0,118820.0,0.3608]
[1752227400024,0.75793309,118830.0,118820.0,0.3608]
[1752227400620,0.1682638,118820.0,118810.0,0.3608]
[1752227400923,1.21174201,118820.0,118810.0,0.3608]
[1752227401123,1.38007001,118820.0,118810.0,0.3608]
[1752227401626,1.63007001,118820.0,118810.0,0.261]
[1752227401829,0.1682921,118800.0,118790.0,0.002]
[1752227402124,1.50873087,118800.0,118790.0,0.002]
[1752227402318,1.67709087,118800.0,118790.0,0.1703063]
[1752227402724,1.07021087,118800.0,118790.0,0.1703063]
[1752227402926,1.32003948,118800.0,118790.0,0.1703063]
[1752227403130,1.32003948,118800.0,118790.0,0.2329063]
[1752227403632,1.67701087,118800.0,118790.0,0.2329063]
[1752227404632,1.67697087,118800.0,118790.0,0.2329063]
[1752227405034,1.31617087,118800.0,118790.0,0.2329063]
[1752227405333,1.67697087,118800.0,118790.0,0.2329063]
[1752227407637,1.67697087,118800.0,118790.0,0.2349063]
[1752227408425,1.07021087,118800.0,118790.0,0.2349063]
[1752227408629,1.67673087,118800.0,118790.0,0.2349063]
[1752227409336,0.71323948,118800.0,118790.0,0.2349063]
[1752227409636,1.67673087,118800.0,118790.0,0.2349063]
[1752227410138,1.67673087,118800.0,118790.0,0.0666]
[1752227410336,1.67673087,118800.0,118790.0,0.0626]
[1752227411039,1.07021087,118800.0,118790.0,0.0626]
[1752227411236,1.67661087,118800.0,118790.0,0.0626]
[1752227411745,1.50825087,118800.0,118790.0,0.0626]
[1752227412945,1.50825087,118800.0,118790.0,0.2309063]
[1752227413146,1.54125087,118800.0,118790.0,0.0626]
[1752227413333,1.50825087,118800.0,118790.0,0.0626]
[1752227413538,1.51613836,118800.0,118790.0,0.0626]
[1752227413838,1.14745087,118800.0,118790.0,0.2309063]
[1752227414033,0.54487948,118800.0,118790.0,0.2309063]
[1752227414236,1.15119948,118800.0,118790.0,0.2309063]
[1752227414440,1.50817087,118800.0,118790.0,0.2309063]
[1752227414841,1.15119948,118800.0,118790.0,0.0626]
[1752227415144,1.50817087,118800.0,118790.0,0.0626]
[1752227416440,1.15119948,118800.0,118790.0,0.0626]
[1752227416641,1.50817087,118800.0,118790.0,0.0626]
[1752227416843,1.51592939,118800.0,118790.0,0.0626]
[1752227417044,1.51592939,118800.0,118790.0,0.2309062]
[1752227417339,1.51592939,118800.0,118790.0,0.0626]
[1752227419743,1.158958,118800.0,118790.0,0.0626]
[1752227419943,1.51592939,118800.0,118790.0,0.0626]
[1752227420946,0.90960939,118800.0,118790.0,0.0626]
[1752227421149,1.51540939,118800.0,118790.0,0.0626]
[1752227421941,1.15460939,118800.0,118790.0,0.2309062]
[1752227422144,1.51540939,118800.0,118790.0,0.0626]
[1752227423553,1.15460939,118800.0,118790.0,0.0626]
[1752227423745,1.51540939,118800.0,118790.0,0.0626]
[1752227424442,1.57585086,118800.0,118790.0,0.0626]
[1752227424648,1.57585086,118800.0,118790.0,0.0746]
[1752227425345,1.158438,118800.0,118790.0,0.0746]
[1752227425551,1.51540939,118800.0,118790.0,0.0746]
[1752227427553,0.90960939,118800.0,118790.0,0.0746]
[1752227427752,1.51500939,118800.0,118790.0,0.0746]
[1752227427960,1.15420939,118800.0,118790.0,0.0746]
[1752227428653,1.51500939,118800.0,118790.0,0.0746]
[1752227428956,1.57545086,118800.0,118790.0,0.0746]
[1752227429256,0.97005086,118800.0,118790.0,0.2429061]
[1752227429555,0.90960939,118800.0,118790.0,0.0746]
[1752227429756,1.51488939,118800.0,118790.0,0.0746]
[1752227430153,1.15408939,118800.0,118790.0,0.0746]
[1752227430859,1.5754317,118800.0,118790.0,0.0746]
[1752227431157,1.21463138,118800.0,118790.0,0.0746]
[1752227431454,1.51488939,118800.0,118790.0,0.0746]
[1752227432052,1.15408939,118800.0,118790.0,0.0746]
[1752227432251,1.51488939,118800.0,118790.0,0.0746]
[1752227432456,1.5905239,118800.0,118790.0,0.0746]
[1752227432652,1.2146712,118800.0,118790.0,0.0746]
[1752227432859,1.5754712,118800.0,118790.0,0.0746]
[1752227434149,1.51488939,118800.0,118790.0,0.0746]
[1752227434757,1.5905239,118800.0,118790.0,0.0746]
[1752227435054,1.51488939,118800.0,118790.0,0.0746]
[1752227435456,1.62073541,118800.0,118790.0,0.0746]
[1752227435960,1.68136344,118800.0,118790.0,0.0746]
[1752227436158,1.51488939,118800.0,118790.0,0.0746]
[1752227436559,1.51488939,118800.0,118790.0,0.0766]
[1752227438660,1.157918,118800.0,118790.0,0.0766]
[1752227438857,1.51488939,118800.0,118790.0,0.0766]
[1752227439760,1.15408939,118800.0,118790.0,0.0766]
[1752227440964,1.25993541,118800.0,118790.0,0.0766]
[1752227441362,0.797118,118800.0,118790.0,0.0766]
[1752227441560,1.15408939,118800.0,118790.0,0.0766]